bitfinex-derivatives/quotes_ETHF0:USTF0_20251117
["timestamp","ask_amount","ask_price","bid_price","bid_amount"]
[1763387387307,3.21176063,3111.3,3111.1,0.00248131]
[1763387387499,0.00396063,3111.3,3111.2,0.52111]
[1763387387704,0.00396063,3111.3,3111.2,6.52111]
[1763387388014,0.00396063,3111.3,3111.2,0.52111]
[1763387388214,0.00396063,3111.3,3111.1,0.00248131]
[1763387388406,0.00396063,3111.3,3111.1,3.73140131]
[1763387388607,0.00396063,3111.3,3111.1,9.73140131]
[1763387388806,3.2078,3111.9,3111.8,0.52101]
[1763387389007,0.00481974,3112.2,3112.0,0.52097]
[1763387389331,9.74e-06,3112.2,3112.0,0.52097]
[1763387389823,0.0036955,3112.2,3112.0,0.52097]
[1763387390127,3.2078,3112.8,3112.4,0.5209]
[1763387390322,3.2078,3112.8,3111.5,3.8211]
[1763387390624,3.2078,3112.2,3111.5,0.6133]
[1763387390816,3.2078,3112.6,3111.8,3.2078]
[1763387391012,0.00481974,3112.5,3112.3,0.52093]
[1763387392215,0.00481974,3112.5,3111.9,0.00481974]
[1763387392425,3.2078,3112.0,3111.9,0.52581974]
[1763387392820,3.2078,3112.4,3111.9,0.00481974]
[1763387393125,3.2078,3112.4,3112.2,0.52093]
[1763387393626,3.2078,3112.4,3111.9,0.00481974]
[1763387393821,0.00481974,3112.5,3111.9,0.00481974]
[1763387393822,3.2078,3112.2,3112.0,0.52098]
[1763387394021,3.7957,3112.2,3111.9,0.00481974]
[1763387394231,3.7957,3112.2,3111.2,3.2078]
[1763387394417,3.2078,3111.6,3111.4,0.52108]
[1763387394920,3.2078,3111.6,3111.2,3.2078]
[1763387395335,3.2078,3112.0,3111.9,0.521]
[1763387395523,3.21261974,3112.5,3112.3,0.52091]
[1763387395833,3.21261974,3112.5,3111.8,3.2078]
[1763387396014,3.21261974,3112.5,3112.3,0.52093]
[1763387396421,3.21261974,3112.5,3111.8,3.2078]
[1763387396819,3.2078,3111.9,3111.3,3.2078]
[1763387397024,3.2078,3111.9,3111.3,3.72889]
[1763387397335,3.2078,3111.9,3111.3,3.2078]
[1763387397834,3.2078,3111.4,3111.1,0.00248131]
[1763387398224,3.2078,3111.4,3111.2,0.52111]
[1763387398628,3.2078,3111.4,3111.1,0.00248131]
[1763387398835,3.2078,3111.8,3111.1,0.00248131]
[1763387399133,3.2078,3111.8,3111.4,0.52107]
[1763387399429,3.2078,3111.8,3111.5,0.52106]
[1763387399824,3.2078,3111.8,3111.6,0.52103]
[1763387400222,3.2078,3112.2,3111.7,1.07]
[1763387400527,3.2078,3111.8,3111.1,0.00248131]
[1763387400829,4.2189,3111.2,3111.1,0.00248131]
[1763387401032,0.5879,3111.5,3111.1,0.00248131]
[1763387401225,3.2078,3111.4,3111.3,0.52108]
[1763387401430,1.0111,3111.2,3111.1,0.00248131]
[1763387401622,3.2078,3111.4,3111.1,0.00248131]
[1763387402834,0.5879,3110.8,3110.5,3.72903]
[1763387403030,0.5879,3110.8,3110.1,3.2078]
[1763387403236,3.2078,3110.3,3109.0,3.2078]
[1763387403421,3.2078,3109.9,3109.0,3.2078]
[1763387403627,0.5879,3109.4,3108.8,3.2078]
[1763387404030,0.59165251,3109.4,3108.8,3.2101551]
[1763387404635,0.00375251,3109.4,3109.1,3.2078]
[1763387404830,3.2078,3109.2,3108.8,0.0023551]
[1763387405936,10.93601673,3109.1,3107.6,3.2078]
[1763387406122,3.80051974,3108.7,3107.6,3.2078]
[1763387406524,3.80051974,3108.7,3108.1,3.2078]
[1763387406731,3.21261974,3108.7,3108.1,3.21138717]
[1763387407124,3.80051974,3108.7,3108.1,3.21138717]
[1763387407327,3.21261974,3108.7,3108.1,0.00358717]
[1763387407732,3.80051974,3108.7,3108.1,0.00358717]
[1763387409438,3.2078,3108.3,3108.1,0.00358717]
[1763387411232,3.2078,3108.3,3107.5,0.52172]
[1763387411433,3.2078,3108.3,3107.3,3.72956]
[1763387411636,3.2078,3107.8,3107.3,3.2078]
[1763387411834,3.2078,3108.3,3107.3,3.72956]
[1763387412036,3.2078,3108.3,3107.4,0.52175]
[1763387412236,3.2078,3107.9,3107.4,0.00316471]
[1763387412533,3.2078,3108.3,3107.4,0.00316471]
[1763387412941,3.2078,3108.3,3108.1,0.52163]
[1763387413335,3.2078,3108.3,3108.2,0.52162]
[1763387413639,0.59271974,3108.7,3107.7,3.2078]
[1763387414230,3.2078,3107.9,3107.4,0.00316471]
[1763387414430,3.2078,3107.5,3106.5,3.2078]
[1763387414635,3.2078,3106.9,3106.1,3.2078]
[1763387414828,0.00482796,3106.8,3106.1,3.2078]
[1763387415238,3.2078,3106.5,3105.5,3.72987]
[1763387415550,3.21172974,3106.5,3105.9,3.2078]
[1763387415738,3.21172974,3106.5,3105.6,0.52205]
[1763387415944,3.21172974,3106.5,3105.5,3.21159257]
[1763387416638,0.5879,3105.2,3104.6,0.01014]
[1763387416842,3.2078,3105.1,3104.6,0.01014]
[1763387417739,3.2078,3105.1,3104.6,0.01424627]
[1763387419040,3.2078,3104.7,3104.6,0.01424627]
[1763387419238,3.2078,3104.7,3103.7,0.12286171]
[1763387419443,3.7789,3104.0,3103.7,0.12286171]
[1763387419835,3.2078,3104.4,3103.7,0.12286171]
[1763387420243,3.21062623,3104.4,3103.7,0.12605257]
[1763387420743,3.21062623,3104.4,3104.1,0.5223]
[1763387420937,3.2078,3104.9,3104.1,3.2078]
[1763387421344,0.00482796,3105.2,3104.5,3.2078]
[1763387422037,0.00375139,3105.2,3105.0,0.52214]
[1763387422238,0.00375139,3105.2,3104.9,3.2078]
[1763387422444,0.00375139,3105.2,3105.0,0.52214]
[1763387422939,0.00482796,3105.4,3105.2,0.52212]
[1763387423145,3.2078,3106.1,3105.3,3.2078]
[1763387423353,3.2078,3106.1,3105.4,0.52207]
[1763387423541,3.2078,3106.1,3105.3,3.2078]
[1763387423746,3.2078,3106.6,3106.3,0.52192]
[1763387423943,0.00295284,3106.6,3106.3,0.00337206]
[1763387424143,0.00295284,3106.6,3106.4,0.52191]
[1763387424553,0.5453,3106.4,3106.3,0.00337206]
[1763387424943,0.5453,3106.4,3105.0,3.2078]
[1763387425147,3.2078,3105.9,3105.0,3.2078]
[1763387425347,3.2078,3105.9,3105.3,0.52209]
[1763387425546,3.2078,3105.9,3105.0,3.2078]
[1763387425844,3.2078,3105.9,3105.1,0.00482796]
[1763387426344,3.2078,3105.9,3105.4,0.52208]
[1763387426652,3.2078,3105.9,3105.1,0.00482796]
[1763387427148,3.2078,3105.9,3105.1,0.52695796]
[1763387427351,3.2078,3105.9,3105.2,0.52211]
[1763387427546,3.2078,3105.9,3105.4,0.52208]
[1763387427847,3.2078,3105.9,3105.5,0.52207]
[1763387428050,3.2078,3105.9,3105.1,0.00482796]
[1763387428244,3.2078,3105.3,3105.1,0.00482796]
[1763387428841,0.5453,3105.6,3105.1,0.00482796]
[1763387429349,0.5453,3105.6,3105.1,0.52696796]
[1763387429550,0.5453,3105.6,3105.1,0.00482796]
[1763387430938,3.2078,3105.7,3105.1,0.00482796]
[1763387431150,3.2078,3105.7,3105.2,0.52212]
[1763387431351,0.5453,3105.6,3105.1,0.00482796]
[1763387431648,3.2078,3105.2,3105.1,0.00482796]
[1763387432054,3.2078,3105.2,3103.8,3.2078]
[1763387432254,3.2078,3105.2,3104.2,3.73008]
[1763387432450,3.2078,3105.2,3104.2,3.2078]
[1763387432651,3.2078,3105.2,3104.6,3.2078]
[1763387432947,3.21262796,3105.2,3104.6,3.21131738]
[1763387433253,3.21262796,3105.2,3105.1,0.52214]
[1763387433644,3.21262796,3105.2,3104.6,3.21131738]
[1763387433948,3.7531,3104.8,3104.6,0.00351738]
[1763387434852,3.2078,3104.8,3104.6,0.00351738]
[1763387435454,3.2078,3104.8,3104.0,0.52232]
[1763387435653,3.2078,3104.8,3103.8,3.2078]
[1763387435853,3.2078,3104.8,3104.0,0.52232]
[1763387436547,0.55012796,3105.2,3104.0,0.52232]
[1763387436548,3.75792796,3105.2,3104.7,0.5222]
[1763387436754,3.75792796,3105.2,3104.2,3.2078]
[1763387437149,3.75792796,3105.2,3104.7,0.5222]
[1763387437350,3.2078,3104.8,3104.0,0.00325525]
[1763387437554,3.2078,3104.8,3104.1,0.52229]
[1763387437755,3.2078,3104.8,3104.0,0.00325525]
[1763387438057,3.2078,3104.8,3104.7,0.5222]
[1763387438959,3.2078,3104.8,3104.3,3.2078]
[1763387439660,3.2078,3104.8,3104.4,0.52225]
[1763387439859,3.2078,3104.8,3104.6,0.52221]
[1763387440047,3.2078,3104.8,3104.3,3.2078]
[1763387440762,3.2078,3104.8,3104.3,3.73007]
[1763387440959,3.2078,3104.8,3104.5,0.52222]
[1763387441256,3.2078,3104.8,3104.3,3.2078]
[1763387441555,3.2078,3104.8,3104.7,0.5222]
[1763387441745,3.2078,3104.8,3104.5,0.52223]
[1763387441948,3.2078,3104.8,3104.6,0.52222]
[1763387442855,3.2078,3104.8,3104.3,3.2078]
[1763387443056,3.2078,3104.8,3104.0,0.00325525]
[1763387443257,0.71119691,3104.7,3104.0,0.00325525]
[1763387443456,3.2078,3104.8,3104.0,0.00325525]
[1763387443760,3.2078,3104.8,3104.7,0.5222]
[1763387444263,3.21262796,3105.2,3104.7,0.9915]
[1763387444447,3.21262796,3105.2,3105.0,0.52215]
[1763387444647,3.75792796,3105.2,3104.8,0.52217]
[1763387444853,0.71312315,3105.1,3104.8,0.52217]
[1763387445054,3.75792796,3105.2,3104.8,0.52217]
[1763387445249,0.71320212,3105.1,3104.8,0.52217]
[1763387445659,0.71320212,3105.1,3104.7,0.52218]
[1763387446356,0.71320212,3105.1,3105.0,0.52215]
[1763387446557,0.00482796,3105.2,3105.1,0.52214]
[1763387446860,0.9759,3105.0,3104.9,3.2078]
[1763387447055,1.68930144,3105.0,3104.9,3.2078]
[1763387447251,4.89710144,3105.0,3104.5,0.52224]
[1763387447458,0.71340144,3104.9,3104.4,3.2078]
[1763387447649,3.2078,3105.0,3104.8,0.52218]
[1763387448057,3.2078,3105.0,3104.9,1.51367]
[1763387448260,0.00482796,3105.2,3105.1,1.51364]
[1763387449064,0.00482796,3105.2,3105.1,0.9915]
[1763387449266,0.00482796,3105.2,3104.9,3.2078]
[1763387449463,0.00482796,3105.2,3105.1,0.52214]
[1763387449764,0.00482796,3105.2,3104.9,3.72996]
[1763387450062,0.00482796,3105.2,3105.0,0.52215]
[1763387450264,0.00482796,3105.2,3104.9,3.2078]
[1763387451154,0.00482796,3105.2,3104.9,3.72996]
[1763387451360,0.00482796,3105.2,3104.9,3.2078]
[1763387451760,0.00482796,3105.2,3105.0,0.52214]
[1763387451955,0.00482796,3105.2,3104.9,3.2078]
[1763387452363,0.00482796,3105.2,3104.9,3.72996]
[1763387452564,0.00482796,3105.2,3104.9,3.2078]
[1763387452766,0.00482796,3105.2,3105.1,1.42054]
[1763387453162,3.2078,3106.2,3105.7,0.8984]
[1763387453477,0.71470381,3106.1,3106.0,0.8984]
[1763387453666,0.71470381,3106.1,3106.0,1.42038]
[1763387453862,0.5996,3107.2,3106.0,1.42038]
[1763387453863,3.2078,3106.7,3106.5,1.4203]
[1763387454063,3.2078,3107.1,3106.6,0.52188]
[1763387454274,0.71502186,3107.0,3106.6,0.52188]
[1763387454471,0.71502186,3107.0,3106.9,0.52183]
[1763387454671,0.71502186,3107.0,3106.9,0.8984]
[1763387455178,0.00366471,3107.0,3106.9,1.42023]
[1763387455361,0.00366471,3107.0,3106.9,0.8984]
[1763387456265,0.00366471,3107.0,3106.9,1.42023]
[1763387456771,0.00366471,3107.0,3106.9,0.8984]
[1763387456972,0.00366471,3107.0,3106.9,1.42023]
[1763387457772,0.00366471,3107.0,3106.9,0.8984]
[1763387458171,0.889,3106.8,3106.7,3.2078]
[1763387458365,0.00366471,3107.0,3106.7,3.72967]
[1763387458675,0.00366471,3107.0,3106.9,0.8984]
[1763387459170,0.00366471,3107.0,3106.7,3.2078]
[1763387459877,0.00366471,3107.0,3106.9,0.8984]
[1763387460174,0.00366471,3107.0,3106.7,3.2078]
[1763387460373,0.00366471,3107.0,3106.5,0.00782543]
[1763387460585,0.889,3106.6,3106.5,0.00782543]
[1763387460779,1.3962,3105.6,3104.7,3.2078]
[1763387460982,3.2078,3105.5,3104.7,3.2078]
[1763387461176,3.2078,3106.1,3105.1,3.2078]
[1763387461685,0.00482796,3105.9,3105.3,0.5221]
[1763387461879,0.00482796,3105.9,3105.1,3.21070852]
[1763387462474,0.00482796,3105.9,3105.2,0.5221]
[1763387462676,3.2078,3105.7,3105.2,0.5221]
[1763387462985,3.2078,3105.7,3105.3,0.5221]
[1763387463175,0.00482796,3105.9,3105.2,0.5221]
[1763387463379,0.00482796,3105.9,3105.3,0.5221]
[1763387464087,0.00482796,3105.9,3105.1,3.21070852]
[1763387464088,3.2078,3105.6,3105.1,3.21070852]
[1763387464878,3.2078,3105.6,3105.1,0.00290852]
[1763387465780,3.2078,3105.6,3105.5,0.8984]
[1763387466281,0.00482796,3105.9,3105.8,0.8984]
[1763387466484,3.2078,3106.4,3105.6,3.7225]
[1763387466683,3.21146471,3107.0,3106.2,0.5147]
[1763387466886,3.21146471,3107.0,3106.5,3.2078]
[1763387467082,3.21146471,3107.0,3106.6,0.52187]
[1763387467381,3.21146471,3107.0,3105.9,3.2078]
[1763387467586,0.00482796,3106.8,3106.4,0.52192]
[1763387467773,0.00482796,3106.8,3106.1,0.00482796]
[1763387468382,0.00482796,3106.8,3106.1,0.52679796]
[1763387468577,0.00482796,3106.8,3106.1,0.00482796]
[1763387469187,3.715,3106.6,3106.1,0.00482796]
[1763387469385,3.2078,3106.6,3106.1,0.00482796]
[1763387469884,3.2078,3106.6,3106.2,0.52195]
[1763387470079,0.00482796,3106.8,3106.3,3.2078]
[1763387470281,0.00482796,3106.8,3106.3,3.72972]
[1763387470489,0.00482796,3106.8,3106.4,0.52191]
[1763387470785,3.715,3106.6,3106.1,0.00482796]
[1763387471086,3.2078,3106.2,3106.1,0.00482796]
[1763387471486,0.5072,3106.6,3106.1,0.00482796]
[1763387472276,3.2078,3106.3,3106.1,0.00482796]
[1763387475394,3.2078,3106.7,3106.3,0.52192]
[1763387475694,0.00482796,3106.8,3106.4,3.7297]
[1763387475991,0.00482796,3106.8,3106.6,0.52188]
[1763387476187,0.00482796,3106.8,3106.4,3.2078]
[1763387476692,0.00482796,3106.8,3106.4,3.7297]
[1763387476894,0.00482796,3106.8,3106.4,3.2078]
[1763387477892,3.2078,3106.5,3106.1,0.00482796]
[1763387478089,0.00482796,3106.8,3106.2,3.2078]
[1763387478487,0.00482796,3106.8,3106.2,3.72975]
[1763387478884,0.00482796,3106.8,3106.2,3.2078]
[1763387479090,0.00482796,3106.8,3106.4,0.52191]
[1763387479292,0.00482796,3106.8,3106.5,0.5219]
[1763387479487,0.00482796,3106.8,3106.1,0.00482796]
[1763387479690,3.2078,3106.5,3106.1,0.00482796]
[1763387480287,0.8215,3106.2,3106.1,0.00482796]
[1763387481299,0.8215,3106.2,3105.1,0.00290852]
[1763387481593,3.2078,3105.6,3105.1,0.00290852]
[1763387482091,0.4775,3105.9,3105.1,0.00290852]
[1763387482690,0.4775,3105.9,3105.3,0.5221]
[1763387482891,3.2078,3106.0,3105.6,0.52205]
[1763387483099,3.6989,3106.6,3105.9,0.7578]
[1763387483500,3.2078,3106.6,3105.9,0.4491]
[1763387483706,3.2078,3106.6,3106.0,0.52198]
[1763387483898,3.2078,3106.6,3106.3,0.52192]
[1763387484098,3.2078,3106.6,3106.5,0.7578]
[1763387484605,3.6853,3106.6,3105.8,44.0078]
[1763387485107,3.2078,3106.6,3105.9,0.4491]
[1763387485906,3.2078,3106.6,3106.0,0.52198]
[1763387486104,3.2078,3106.6,3106.2,0.52195]
[1763387486305,3.2078,3106.6,3105.9,0.4491]
[1763387486506,3.2078,3106.6,3106.5,1.2797]
[1763387486705,3.2078,3106.6,3106.5,0.5219]
[1763387486902,3.2078,3106.6,3106.1,0.52196]
[1763387487107,3.2078,3106.6,3105.9,0.4491]
[1763387487306,3.2078,3106.6,3106.5,0.5219]
[1763387487500,3.2078,3106.6,3105.9,0.4491]
[1763387487901,3.2078,3106.6,3106.0,0.52197]
[1763387488098,3.2078,3106.6,3106.2,0.52194]
[1763387488308,3.2078,3106.6,3106.5,0.5219]
[1763387488510,3.2078,3106.6,3106.3,0.52192]
[1763387488711,3.2078,3106.6,3105.9,0.4491]
[1763387490812,3.6853,3106.6,3105.9,0.4491]
[1763387491005,3.2078,3106.6,3105.9,0.4491]
[1763387494311,3.2078,3106.6,3105.8,3.2078]
[1763387494516,3.2078,3106.6,3106.5,0.7578]
[1763387494708,3.2078,3106.6,3105.8,3.2078]
[1763387497111,0.8174,3105.9,3105.3,4.90853672]
[1763387497310,0.8174,3105.9,3105.3,3.2078]
[1763387497814,3.6853,3106.2,3105.3,3.2078]
[1763387501616,3.2078,3106.2,3105.3,3.2078]
[1763387502212,3.2078,3106.2,3106.1,0.7578]
[1763387502614,3.2078,3106.2,3105.8,3.2078]
[1763387502917,3.2078,3106.2,3106.1,0.7578]
[1763387504019,3.2078,3106.7,3106.1,0.7578]
[1763387504524,3.2078,3106.7,3106.6,0.7578]
[1763387504719,3.2078,3106.7,3106.2,0.4491]
[1763387504914,3.2078,3106.7,3105.8,3.2078]
[1763387505921,0.00482796,3106.8,3106.7,0.7578]
[1763387506222,0.00366471,3107.0,3106.9,0.7578]
[1763387506421,0.00366471,3107.0,3106.9,3.9656]
[1763387506816,3.2078,3107.6,3106.9,3.9656]
[1763387507014,3.21262796,3107.6,3106.9,3.97042796]
[1763387508024,3.21522451,3107.6,3106.9,3.97042796]
[1763387510226,0.8174,3107.0,3106.9,0.00482796]
[1763387512420,3.2078,3107.2,3106.9,0.76262796]
[1763387512724,3.2078,3107.2,3106.9,0.00482796]
[1763387513329,3.2078,3107.2,3107.1,0.7045]
[1763387514233,3.2078,3107.2,3106.9,0.00482796]
[1763387514234,3.21522451,3107.6,3107.5,0.7045]
[1763387514528,3.2078,3108.5,3107.5,0.70732054]
[1763387515030,3.2078,3108.9,3108.4,0.7045]
[1763387515221,3.2078,3108.9,3108.8,0.7045]
[1763387515524,3.21177667,3108.9,3108.8,0.7045]
[1763387515731,0.00397667,3108.9,3108.8,0.7045]
[1763387516730,3.2078,3110.2,3109.2,0.1865]
[1763387516919,3.2078,3110.2,3109.5,3.2078]
[1763387517518,5.00382187,3110.0,3109.5,3.2078]
[1763387517720,5.00382187,3110.0,3109.9,3.2078]
[1763387517922,0.7066,3109.4,3108.5,3.21262796]
[1763387518226,3.2078,3109.3,3108.6,0.4329]
[1763387518533,3.2078,3109.7,3108.9,3.2078]
[1763387518929,3.2078,3109.7,3108.9,3.21057155]
[1763387519326,3.2078,3109.7,3108.9,3.73207155]
[1763387519831,0.4553,3109.0,3108.7,38.45737155]
[1763387520126,3.2078,3108.2,3106.0,3.2078]
[1763387520336,3.2078,3106.1,3105.9,0.4329]
[1763387520522,3.2078,3106.7,3106.0,6.0]
[1763387520723,3.2078,3108.5,3108.0,0.4329]
[1763387520920,0.00252632,3108.5,3108.1,3.2078]
[1763387521122,3.2078,3108.2,3108.0,3.65286772]
[1763387521528,9.2078,3108.2,3108.0,3.21996772]
[1763387521728,6.0,3108.1,3108.0,0.00396772]
[1763387521932,6.0,3108.1,3106.4,0.4329]
[1763387522141,3.2078,3106.9,3106.5,2.7922]
[1763387522330,3.2078,3106.9,3106.4,0.4329]
[1763387522632,3.2078,3106.5,3106.4,6.4411]
[1763387522828,3.2078,3106.5,3105.6,3.2078]
[1763387523028,3.21262796,3106.5,3106.0,2.7922]
[1763387523230,3.2078,3106.1,3105.9,0.00887295]
[1763387523431,3.21149281,3106.1,3105.9,0.00887295]
[1763387523629,3.21149281,3106.1,3105.9,3.22487295]
[1763387523828,3.21149281,3106.1,3105.9,0.00887295]
[1763387524031,3.21149281,3106.1,3105.9,3.22487295]
[1763387524226,3.21149281,3106.1,3105.9,1.82442958]
[1763387524227,9.21149281,3106.1,3105.9,1.82442958]
[1763387524423,3.21149281,3106.1,3104.7,3.73]
[1763387524735,3.2078,3105.7,3105.6,0.4329]
[1763387525137,3.2078,3105.7,3105.6,3.2251]
[1763387525440,3.2078,3105.7,3105.6,3.2289296]
[1763387526028,0.00482796,3106.5,3105.6,3.2289296]
[1763387526029,0.00482796,3106.5,3105.6,3.6445296]
[1763387526235,0.00482796,3106.5,3106.4,0.4329]
[1763387526926,0.00482796,3106.5,3105.6,3.6445296]
[1763387527235,3.2078,3106.1,3105.6,0.4367296]
[1763387527440,3.2078,3105.7,3105.6,0.0038296]
[1763387528131,3.2078,3106.1,3105.6,0.4367296]
[1763387528639,3.2078,3105.7,3105.6,0.0038296]
[1763387529031,3.2078,3104.7,3103.7,0.12286171]
[1763387529228,3.2078,3103.8,3102.5,3.2078]
[1763387529435,3.2078,3102.6,3101.9,3.2078]
[1763387529732,3.2078,3102.6,3101.6,41.2329]
[1763387529948,3.2078,3102.4,3101.6,41.2329]
[1763387530233,3.2078,3102.4,3101.9,0.52267]
[1763387530539,3.2078,3102.4,3102.3,0.4329]
[1763387531530,9.2078,3102.4,3101.6,0.00316237]
[1763387531733,3.2078,3101.0,3099.6,0.4209]
[1763387531933,3.2078,3099.9,3099.6,0.4089]
[1763387532335,0.00483582,3100.1,3099.6,0.3969]
[1763387532646,3.2078,3099.8,3098.7,0.46517212]
[1763387532827,3.2078,3098.8,3098.7,0.46517212]
[1763387533027,3.21036789,3098.8,3098.7,0.46763197]
[1763387533230,3.2078,3099.7,3098.7,3.67543197]
[1763387533440,0.00483582,3100.1,3100.0,0.4329]
[1763387533643,0.00483582,3100.1,3100.0,3.6407]
[1763387533941,0.00483582,3100.1,3100.0,0.4329]
[1763387534243,0.00843942,3100.1,3099.0,3.2078]
[1763387534538,3.2078,3099.2,3098.7,0.03473197]
[1763387535329,0.00843942,3100.1,3098.7,0.03473197]
[1763387535537,3.2078,3098.8,3098.7,0.03473197]
[1763387535736,3.2078,3098.8,3097.8,0.4329]
[1763387536038,3.2078,3099.2,3098.0,0.52332]
[1763387536240,3.2078,3098.8,3098.3,3.2078]
[1763387536426,3.2078,3098.7,3097.8,3.6407]
[1763387536631,3.2078,3098.3,3097.8,3.6407]
[1763387536843,0.00483582,3098.4,3097.8,3.64340609]
[1763387537029,3.21263582,3098.4,3097.8,3.64340609]
[1763387537228,0.00483582,3098.4,3097.8,3.64340609]
[1763387537440,0.00483582,3098.4,3098.2,3.2078]
[1763387538245,3.2078,3098.3,3097.8,0.43560609]
[1763387539338,3.2078,3097.9,3097.8,0.00270609]
[1763387539533,3.2102112,3097.9,3097.2,0.09064158]
[1763387539734,3.2102112,3097.9,3096.0,3.6407]
[1763387539735,3.2078,3097.3,3096.0,3.6407]
[1763387540040,3.2078,3097.2,3096.0,3.6407]
[1763387540348,3.2078,3096.4,3096.0,0.4329]
[1763387540643,3.2078,3096.4,3096.0,0.43535909]
[1763387541139,0.00484393,3096.5,3096.2,3.2078]
[1763387541346,3.2078,3097.8,3097.0,0.7178]
[1763387541539,0.0024112,3097.9,3097.4,3.2078]
[1763387542137,0.0024112,3097.9,3097.8,3.2078]
[1763387542338,3.2102112,3097.9,3097.5,0.00484393]
[1763387542533,3.2102112,3097.9,3097.0,3.9256]
[1763387542739,3.2078,3097.2,3096.0,0.69615909]
[1763387542940,3.2078,3097.2,3096.3,3.2078]
[1763387543143,3.2078,3097.8,3097.0,3.9256]
[1763387543538,0.0024112,3097.9,3097.7,3.2078]
[1763387543739,0.0024112,3097.9,3097.1,3.228]
[1763387543740,0.0024112,3097.9,3097.2,3.2078]
[1763387544040,3.2078,3097.4,3097.1,0.147]
[1763387544245,3.2078,3097.8,3097.1,0.147]
[1763387544443,3.2078,3097.8,3097.3,3.2078]
[1763387544743,3.2078,3097.8,3097.1,0.147]
[1763387544744,0.00484393,3098.2,3098.0,0.7178]
[1763387544942,3.2078,3099.9,3098.1,3.2078]
[1763387545150,3.2078,3099.5,3098.6,3.2078]
[1763387545341,3.2078,3099.5,3098.0,0.7178]
[1763387545342,3.2078,3099.5,3099.0,3.9256]
[1763387545543,3.2078,3099.1,3099.0,0.7178]
[1763387545746,3.2115482,3099.1,3099.0,0.72012474]
[1763387546146,3.2115482,3099.1,3099.0,0.00232474]
[1763387546348,3.2115482,3099.1,3098.7,0.00484393]
[1763387546854,1.0744,3098.9,3098.7,0.00484393]
[1763387547049,3.2115482,3099.1,3098.7,0.00484393]
[1763387547245,3.2115482,3099.1,3099.0,0.7178]
[1763387548751,1.08723527,3103.3,3099.0,9.9256]
[1763387548752,3.2078,3100.6,3099.0,9.9256]
[1763387549047,3.2078,3099.7,3098.7,0.00315473]
[1763387549249,3.2078,3099.1,3098.7,0.00315473]
[1763387549449,3.2078,3099.1,3097.7,3.2078]
[1763387549646,3.2078,3098.5,3097.7,3.2078]
[1763387549949,3.2078,3098.1,3097.8,0.00484393]
[1763387550160,3.2078,3098.1,3096.2,3.2078]
[1763387550343,3.2078,3097.6,3097.1,3.35735172]
[1763387550650,3.21178899,3098.1,3097.1,3.35735172]
[1763387550844,3.21178899,3098.1,3097.6,3.2078]
[1763387551045,0.5555482,3097.9,3097.5,0.00484393]
[1763387551241,0.5555482,3098.0,3097.5,0.00484393]
[1763387551448,3.21178899,3098.1,3097.5,3.21264393]
[1763387551843,0.00398899,3098.1,3098.0,3.2078]
[1763387553154,0.00398899,3098.1,3097.5,0.00484393]
[1763387553354,0.5555482,3098.0,3097.5,0.00484393]
[1763387553651,0.00398899,3098.1,3097.5,3.21264393]
[1763387553854,3.2078,3097.9,3097.5,0.00484393]
[1763387554047,0.5555482,3097.7,3097.1,3.35735172]
[1763387554252,3.7633482,3097.3,3097.1,0.14955172]
[1763387554449,3.7633482,3097.3,3096.5,3.2078]
[1763387554748,0.00398899,3098.1,3093.4,0.86510634]
[1763387554749,0.5555482,3096.7,3095.9,3.2078]
[1763387554954,0.00398899,3098.1,3096.6,3.2078]
[1763387555156,0.00484393,3097.7,3097.6,3.2078]
[1763387555460,0.00484393,3097.7,3097.6,3.21184786]
[1763387556062,0.00484393,3097.7,3097.6,9.21184786]
[1763387556555,3.2078,3099.8,3097.7,9.228]
[1763387556755,3.2078,3099.8,3099.2,3.2078]
[1763387557661,3.2078,3099.8,3099.6,3.2078]
[1763387557662,0.00818959,3099.8,3099.6,3.2078]
[1763387558058,3.2078,3101.3,3099.7,9.2256]
[1763387558261,3.2078,3101.9,3100.9,3.2078]
[1763387558459,0.6897,3103.0,3101.6,3.2078]
[1763387558460,3.2078,3102.9,3101.6,3.2078]
[1763387558664,3.90977754,3102.8,3101.6,3.2078]
[1763387558864,3.2078,3102.8,3102.0,3.2078]
[1763387559052,0.00483512,3102.7,3102.5,3.2078]
[1763387559557,0.00483512,3102.7,3102.6,6.0]
[1763387559867,3.2078,3104.9,3102.6,50.0224]
[1763387560069,0.6897,3105.0,3104.5,3.2078]
[1763387560261,3.2078,3105.7,3104.9,3.2078]
[1763387560567,3.2078,3105.8,3105.0,3.2078]
[1763387560763,3.2078,3105.4,3105.1,0.00483512]
[1763387560966,0.00483512,3105.7,3105.1,3.512e-05]
[1763387561158,3.2078,3105.4,3105.1,3.512e-05]
[1763387561760,0.00483512,3105.7,3105.1,3.20783512]
[1763387561968,0.00483512,3105.7,3105.5,3.2078]
[1763387563062,0.00483512,3105.7,3105.1,3.20783512]
[1763387564065,0.00483512,3105.7,3105.5,3.2078]
[1763387566073,3.2078,3107.6,3106.2,0.52199]
[1763387566366,3.2078,3108.0,3106.9,3.2078]
[1763387566574,3.2078,3108.0,3107.4,3.2078]
[1763387566962,3.21133335,3108.0,3107.4,3.2155653]
[1763387567169,3.21616006,3108.0,3107.4,3.2155653]
[1763387567362,0.00836006,3108.0,3107.4,3.2155653]
[1763387567570,0.00836006,3108.0,3107.8,3.2078]
[1763387568276,0.26455972,3111.5,3107.8,3.2078]
[1763387568277,3.2078,3110.7,3107.8,3.2078]
[1763387568474,3.2078,3109.6,3108.9,3.2078]
[1763387568677,3.2078,3109.1,3108.5,3.2078]
[1763387568977,3.8975,3108.6,3107.7,3.2078]
[1763387569178,0.00482671,3108.5,3107.8,0.00482671]
[1763387569566,0.00482671,3108.5,3108.1,3.2078]
[1763387569763,3.2078,3108.4,3107.8,0.00482671]
[1763387570163,0.00482671,3108.5,3108.2,3.2078]
[1763387570868,0.00482671,3108.5,3108.2,3.72945]
[1763387571181,0.00482671,3108.5,3108.3,0.52164]
[1763387571677,0.00482671,3108.5,3108.2,3.2078]